[Event "*** Titled Tuesday Blitz AM"]
[Site "Chess.com"]
[Date "2020.01.07"]
[Round "5"]
[White "kleinebeer98"]
[Black "severomorskij"]
[Result "0-1"]
[WhiteElo "2675"]
[BlackElo "2890"]
[TimeControl "180+2"]
[EndTime "10:04:59 PST"]
[Termination "severomorskij won by resignation"]

1. e4 {[%clk 0:03:01.9]} 1... c5 {[%clk 0:02:59.4]} 2. b4 {[%clk 0:03:02.1]}
2... cxb4 {[%clk 0:02:59.9]} 3. a3 {[%clk 0:03:03.6]} 3... e6 {[%clk 0:02:56.8]}
4. axb4 {[%clk 0:03:02]} 4... Bxb4 {[%clk 0:02:55.7]} 5. c3 {[%clk 0:03:02.6]}
5... Be7 {[%clk 0:02:54.7]} 6. d4 {[%clk 0:03:03]} 6... Nf6 {[%clk 0:02:51.8]}
7. e5 {[%clk 0:03:02.1]} 7... Nd5 {[%clk 0:02:52.6]} 8. Bd3 {[%clk 0:02:58.6]}
8... O-O {[%clk 0:02:44.8]} 9. Nf3 {[%clk 0:02:57.3]} 9... d6 {[%clk 0:02:39.3]}
10. O-O {[%clk 0:02:54.7]} 10... dxe5 {[%clk 0:02:27.8]} 11. Nxe5 {[%clk
0:02:54.3]} 11... Nd7 {[%clk 0:02:28.4]} 12. f4 {[%clk 0:02:47.4]} 12... g6
{[%clk 0:02:12]} 13. Rf3 {[%clk 0:02:39.6]} 13... Qc7 {[%clk 0:01:57.6]} 14. Bd2
{[%clk 0:02:21.4]} 14... b6 {[%clk 0:01:53]} 15. Rh3 {[%clk 0:02:21.6]} 15...
Bb7 {[%clk 0:01:53.6]} 16. Rxh7 {[%clk 0:01:56.3]} 16... Kxh7 {[%clk 0:00:46.2]}
17. Nxg6 {[%clk 0:01:52.3]} 17... f5 {[%clk 0:00:45.5]} 18. Nxf8+ {[%clk
0:01:30.3]} 18... Nxf8 {[%clk 0:00:42.7]} 19. Na3 {[%clk 0:01:25.3]} 19... Ng6
{[%clk 0:00:40.6]} 20. Nb5 {[%clk 0:01:23.2]} 20... Qd7 {[%clk 0:00:38.8]} 21.
Qh5+ {[%clk 0:01:20.1]} 21... Kg7 {[%clk 0:00:39]} 22. Rf1 {[%clk 0:01:21.1]}
22... Rh8 {[%clk 0:00:31.4]} 23. Qe2 {[%clk 0:01:20.5]} 23... a6 {[%clk
0:00:27]} 24. c4 {[%clk 0:01:21.6]} 24... axb5 {[%clk 0:00:21.3]} 25. cxd5
{[%clk 0:01:23]} 25... Qxd5 {[%clk 0:00:22.4]} 26. Bxb5 {[%clk 0:01:24.5]} 26...
Bf6 {[%clk 0:00:21.6]} 27. Be3 {[%clk 0:01:23.5]} 27... Bxd4 {[%clk 0:00:21.5]}
28. Bxd4+ {[%clk 0:01:25.4]} 28... Qxd4+ {[%clk 0:00:22.5]} 29. Kh1 {[%clk
0:01:26.2]} 29... Nxf4 {[%clk 0:00:21.7]} 30. Qf2 {[%clk 0:01:23.3]} 30... Bxg2+
{[%clk 0:00:21.2]} 31. Kg1 {[%clk 0:01:24.7]} 31... Nh3+ {[%clk 0:00:22.2]} 0-1

[Event "*** Titled Tuesday Blitz AM"]
[Site "Chess.com"]
[Date "2020.01.07"]
[Round "5"]
[White "fireheart92"]
[Black "DrVelja"]
[Result "1-0"]
[WhiteElo "2927"]
[BlackElo "2743"]
[TimeControl "180+2"]
[EndTime "10:05:00 PST"]
[Termination "fireheart92 won by resignation"]

1. Nf3 {[%clk 0:03:01.9]} 1... Nf6 {[%clk 0:03:00.7]} 2. c4 {[%clk 0:03:02]}
2... g6 {[%clk 0:03:01.7]} 3. d4 {[%clk 0:03:00.6]} 3... Bg7 {[%clk 0:03:02.3]}
4. g3 {[%clk 0:03:02]} 4... c6 {[%clk 0:02:59.3]} 5. Bg2 {[%clk 0:03:02.9]} 5...
d5 {[%clk 0:03:01]} 6. O-O {[%clk 0:03:04]} 6... O-O {[%clk 0:03:01.9]} 7. Qa4
{[%clk 0:03:05]} 7... Nfd7 {[%clk 0:02:38.6]} 8. cxd5 {[%clk 0:02:58.1]} 8...
Nb6 {[%clk 0:02:39.8]} 9. Qb3 {[%clk 0:02:55.2]} 9... cxd5 {[%clk 0:02:31.7]}
10. Bf4 {[%clk 0:02:53.7]} 10... Nc6 {[%clk 0:02:31.4]} 11. Nc3 {[%clk
0:02:50.9]} 11... a5 {[%clk 0:02:17.1]} 12. Nb5 {[%clk 0:02:46.4]} 12... a4
{[%clk 0:02:18.4]} 13. Qd1 {[%clk 0:02:46.9]} 13... Ra5 {[%clk 0:02:10.2]} 14.
Na3 {[%clk 0:02:26.3]} 14... Bf5 {[%clk 0:02:08.7]} 15. Rc1 {[%clk 0:02:25.1]}
15... Be4 {[%clk 0:01:57.4]} 16. Bd2 {[%clk 0:02:14]} 16... Ra6 {[%clk
0:01:34.1]} 17. e3 {[%clk 0:02:15]} 17... Nc8 {[%clk 0:01:33.2]} 18. Ne1 {[%clk
0:02:02.6]} 18... Bxg2 {[%clk 0:01:29]} 19. Kxg2 {[%clk 0:02:04.5]} 19... e5
{[%clk 0:01:10.7]} 20. dxe5 {[%clk 0:02:04.2]} 20... Nxe5 {[%clk 0:01:12.6]} 21.
Bc3 {[%clk 0:02:03.3]} 21... Re8 {[%clk 0:00:53.4]} 22. Nf3 {[%clk 0:02:03.7]}
22... Nxf3 {[%clk 0:00:41.4]} 23. Qxf3 {[%clk 0:02:05.6]} 23... Bxc3 {[%clk
0:00:41.2]} 24. Rxc3 {[%clk 0:02:00.9]} 24... Rf6 {[%clk 0:00:30.6]} 25. Qd1
{[%clk 0:01:58.6]} 25... Qd7 {[%clk 0:00:15.4]} 26. Nc2 {[%clk 0:01:54.2]} 26...
Rb6 {[%clk 0:00:12]} 27. Qd4 {[%clk 0:01:44.9]} 27... Re4 {[%clk 0:00:07.2]} 28.
Rxc8+ {[%clk 0:01:44.2]} 28... Qxc8 {[%clk 0:00:08.5]} 29. Qxb6 {[%clk
0:01:45.4]} 29... Qxc2 {[%clk 0:00:10.2]} 30. Qxb7 {[%clk 0:01:46.1]} 30... d4
{[%clk 0:00:07.4]} 31. exd4 {[%clk 0:01:44.5]} 31... Rxd4 {[%clk 0:00:09.3]} 32.
Qb8+ {[%clk 0:01:45.4]} 32... Kg7 {[%clk 0:00:08.5]} 33. Qe5+ {[%clk 0:01:46.3]}
1-0

[Event "*** Titled Tuesday Blitz AM"]
[Site "Chess.com"]
[Date "2020.01.07"]
[Round "5"]
[White "KerryStead"]
[Black "angryhorse9"]
[Result "0-1"]
[WhiteElo "2057"]
[BlackElo "2256"]
[TimeControl "180+2"]
[EndTime "10:05:06 PST"]
[Termination "angryhorse9 won by resignation"]

1. d4 {[%clk 0:03:01.7]} 1... Nf6 {[%clk 0:02:53.2]} 2. f3 {[%clk 0:02:55.2]}
2... d5 {[%clk 0:02:52.9]} 3. e4 {[%clk 0:02:56]} 3... dxe4 {[%clk 0:02:53.2]}
4. Nc3 {[%clk 0:02:57.4]} 4... exf3 {[%clk 0:02:53.2]} 5. Nxf3 {[%clk
0:02:58.7]} 5... e6 {[%clk 0:02:51.9]} 6. Bg5 {[%clk 0:02:59]} 6... Be7 {[%clk
0:02:49.6]} 7. Bd3 {[%clk 0:02:59.9]} 7... O-O {[%clk 0:02:49.1]} 8. O-O {[%clk
0:03:00.9]} 8... c5 {[%clk 0:02:48.9]} 9. dxc5 {[%clk 0:02:58]} 9... Nbd7 {[%clk
0:02:49.8]} 10. Qe1 {[%clk 0:02:55.7]} 10... Nxc5 {[%clk 0:02:48.8]} 11. Rd1
{[%clk 0:02:55.1]} 11... Nxd3 {[%clk 0:02:48.2]} 12. Rxd3 {[%clk 0:02:55.1]}
12... Qb6+ {[%clk 0:02:49.2]} 13. Kh1 {[%clk 0:02:55.9]} 13... Qxb2 {[%clk
0:02:32]} 14. Ne4 {[%clk 0:02:53.8]} 14... Nd5 {[%clk 0:02:10.2]} 15. Bxe7
{[%clk 0:02:54.1]} 15... Nxe7 {[%clk 0:02:11.5]} 16. Nd4 {[%clk 0:02:40.6]}
16... e5 {[%clk 0:02:06.1]} 17. Nf3 {[%clk 0:02:27.9]} 17... Ng6 {[%clk
0:02:04.1]} 18. Qg3 {[%clk 0:02:25.2]} 18... Qxc2 {[%clk 0:02:02]} 19. Re3
{[%clk 0:02:22.6]} 19... f5 {[%clk 0:01:56.5]} 20. Rf2 {[%clk 0:02:04.7]} 20...
Qc7 {[%clk 0:01:46]} 21. Nh4 {[%clk 0:01:55.3]} 21... fxe4 {[%clk 0:01:43.8]}
22. Rxf8+ {[%clk 0:01:55.7]} 22... Nxf8 {[%clk 0:01:45.7]} 23. Rxe4 {[%clk
0:01:54.6]} 23... Be6 {[%clk 0:01:36.1]} 24. h3 {[%clk 0:01:49.3]} 24... Rd8
{[%clk 0:01:35.7]} 25. Rxe5 {[%clk 0:01:49.3]} 25... Rd1+ {[%clk 0:01:34.9]} 26.
Kh2 {[%clk 0:01:51]} 26... Rd5 {[%clk 0:01:29.8]} 27. Rxd5 {[%clk 0:01:19.4]}
27... Qxg3+ {[%clk 0:01:29.5]} 28. Kxg3 {[%clk 0:01:21.2]} 28... Bxd5 {[%clk
0:01:28.8]} 29. Nf5 {[%clk 0:01:23]} 29... Bxa2 {[%clk 0:01:28.2]} 30. Kf4
{[%clk 0:01:23.4]} 30... a5 {[%clk 0:01:27.3]} 31. Ke5 {[%clk 0:01:22.4]} 31...
a4 {[%clk 0:01:27.6]} 32. Kd4 {[%clk 0:01:23.6]} 32... a3 {[%clk 0:01:24.5]} 33.
Kc3 {[%clk 0:01:24.6]} 33... Be6 {[%clk 0:01:25.9]} 34. Nd4 {[%clk 0:01:24.7]}
34... a2 {[%clk 0:01:23.3]} 35. Kb2 {[%clk 0:01:25.1]} 35... Kf7 {[%clk
0:01:25.2]} 36. Nxe6 {[%clk 0:01:24.5]} 36... Kxe6 {[%clk 0:01:24.6]} 37. Kxa2
{[%clk 0:01:26.1]} 37... Kd5 {[%clk 0:01:26.5]} 38. Kb3 {[%clk 0:01:27.2]} 38...
Kc5 {[%clk 0:01:27.8]} 0-1

[Event "*** Titled Tuesday Blitz AM"]
[Site "Chess.com"]
[Date "2020.01.07"]
[Round "5"]
[White "Kubas1010"]
[Black "Manukyan_Artak"]
[Result "1/2-1/2"]
[WhiteElo "2605"]
[BlackElo "2440"]
[TimeControl "180+2"]
[EndTime "10:05:08 PST"]
[Termination "Game drawn by agreement"]

1. d4 {[%clk 0:03:01.9]} 1... Nf6 {[%clk 0:03:00.3]} 2. c4 {[%clk 0:03:02.5]}
2... e6 {[%clk 0:03:01.5]} 3. Nc3 {[%clk 0:03:02.5]} 3... d5 {[%clk 0:03:00.3]}
4. Nf3 {[%clk 0:02:55.1]} 4... Be7 {[%clk 0:02:58.4]} 5. g3 {[%clk 0:02:55.2]}
5... Nbd7 {[%clk 0:02:54.2]} 6. Bg2 {[%clk 0:02:54.2]} 6... dxc4 {[%clk
0:02:54.9]} 7. O-O {[%clk 0:02:54.5]} 7... Nb6 {[%clk 0:02:54.1]} 8. e4 {[%clk
0:02:46.4]} 8... O-O {[%clk 0:02:53.5]} 9. h3 {[%clk 0:02:41.1]} 9... c5 {[%clk
0:02:51.6]} 10. Be3 {[%clk 0:02:40.8]} 10... cxd4 {[%clk 0:02:48.3]} 11. Nxd4
{[%clk 0:02:41.7]} 11... e5 {[%clk 0:02:44.2]} 12. Ndb5 {[%clk 0:02:36.7]} 12...
Be6 {[%clk 0:02:33.1]} 13. Qxd8 {[%clk 0:02:33.6]} 13... Bxd8 {[%clk 0:02:26.4]}
14. Nd6 {[%clk 0:02:28.5]} 14... Rb8 {[%clk 0:02:21.1]} 15. f4 {[%clk
0:02:29.1]} 15... exf4 {[%clk 0:02:16.7]} 16. gxf4 {[%clk 0:02:29.8]} 16... Be7
{[%clk 0:02:07]} 17. Rad1 {[%clk 0:02:25.9]} 17... Rfd8 {[%clk 0:02:05.5]} 18.
Ndb5 {[%clk 0:02:25.6]} 18... Rd3 {[%clk 0:01:43]} 19. Rxd3 {[%clk 0:02:15]}
19... cxd3 {[%clk 0:01:44.1]} 20. f5 {[%clk 0:02:08.2]} 20... Bc4 {[%clk
0:01:44.4]} 21. b3 {[%clk 0:02:04.8]} 21... Bxb5 {[%clk 0:01:43.5]} 22. Nxb5
{[%clk 0:02:06.5]} 22... Nbd7 {[%clk 0:01:39.9]} 23. Bf4 {[%clk 0:02:03.6]}
23... Bc5+ {[%clk 0:01:27.7]} 24. Kh2 {[%clk 0:02:03.5]} 24... Re8 {[%clk
0:01:28.5]} 25. Rd1 {[%clk 0:01:57.6]} 25... Nxe4 {[%clk 0:01:25.3]} 26. Rxd3
{[%clk 0:01:56.5]} 26... Ndf6 {[%clk 0:01:23.6]} 27. Nc7 {[%clk 0:01:54.2]}
27... Rc8 {[%clk 0:01:16.8]} 28. Nd5 {[%clk 0:01:53.1]} 28... Nxd5 {[%clk
0:01:14.8]} 29. Rxd5 {[%clk 0:01:52.8]} 29... Nf6 {[%clk 0:01:14.7]} 30. Rd3
{[%clk 0:01:46.3]} 30... b6 {[%clk 0:01:03.2]} 31. Be5 {[%clk 0:01:42.3]} 31...
a5 {[%clk 0:00:56.9]} 32. Bxf6 {[%clk 0:01:38.8]} 32... gxf6 {[%clk 0:00:58.8]}
33. Rd7 {[%clk 0:01:39]} 33... Re8 {[%clk 0:00:57.8]} 34. Bd5 {[%clk 0:01:39.5]}
34... Re7 {[%clk 0:00:59]} 35. Rxe7 {[%clk 0:01:34.5]} 35... Bxe7 {[%clk
0:00:59.2]} 36. Kg3 {[%clk 0:01:35.3]} 36... Kg7 {[%clk 0:00:59.1]} 37. Kg4
{[%clk 0:01:34.2]} 37... Bd6 {[%clk 0:00:58.8]} 38. a4 {[%clk 0:01:34.1]} 38...
Be5 {[%clk 0:00:59.4]} 39. Bc4 {[%clk 0:01:33.7]} 39... Kf8 {[%clk 0:00:59.7]}
40. Kh5 {[%clk 0:01:33.7]} 40... Bf4 {[%clk 0:00:59.9]} 41. Kg4 {[%clk
0:01:34.5]} 41... Bd2 {[%clk 0:01:00.1]} 42. Kf3 {[%clk 0:01:35.2]} 42... Ke7
{[%clk 0:01:00.8]} 43. Ke4 {[%clk 0:01:36.6]} 43... Be1 {[%clk 0:00:59.4]} 44.
Kd5 {[%clk 0:01:37.4]} 44... Bf2 {[%clk 0:01:00.2]} 1/2-1/2

[Event "*** Titled Tuesday Blitz AM"]
[Site "Chess.com"]
[Date "2020.01.07"]
[Round "5"]
[White "Onegust"]
[Black "GMCarbone"]
[Result "1-0"]
[WhiteElo "2557"]
[BlackElo "2262"]
[TimeControl "180+2"]
[EndTime "10:05:10 PST"]
[Termination "Onegust won by resignation"]

1. e4 {[%clk 0:02:59.4]} 1... c5 {[%clk 0:02:58.3]} 2. Nf3 {[%clk 0:03:00.1]}
2... Nc6 {[%clk 0:02:59.5]} 3. Bb5 {[%clk 0:03:00.4]} 3... g6 {[%clk 0:03:00.2]}
4. Bxc6 {[%clk 0:03:00.7]} 4... dxc6 {[%clk 0:03:01.6]} 5. h3 {[%clk 0:03:01.6]}
5... Bg7 {[%clk 0:03:02.9]} 6. d3 {[%clk 0:03:03]} 6... Nf6 {[%clk 0:03:04.3]}
7. O-O {[%clk 0:03:04.5]} 7... Nd7 {[%clk 0:03:04.9]} 8. Re1 {[%clk 0:03:05.2]}
8... e5 {[%clk 0:03:05.8]} 9. Be3 {[%clk 0:03:06.6]} 9... b6 {[%clk 0:03:06.5]}
10. Nbd2 {[%clk 0:03:06.8]} 10... Nf8 {[%clk 0:03:06]} 11. a3 {[%clk 0:03:06.9]}
11... a5 {[%clk 0:03:06.2]} 12. Nc4 {[%clk 0:03:06.5]} 12... Qc7 {[%clk
0:03:05.9]} 13. b4 {[%clk 0:02:58.6]} 13... axb4 {[%clk 0:03:05.4]} 14. axb4
{[%clk 0:03:00.5]} 14... Rxa1 {[%clk 0:03:05.3]} 15. Qxa1 {[%clk 0:03:01.4]}
15... Ne6 {[%clk 0:03:06]} 16. bxc5 {[%clk 0:03:00.3]} 16... bxc5 {[%clk
0:03:07.9]} 17. Nfxe5 {[%clk 0:02:25.1]} 17... O-O {[%clk 0:03:02]} 18. f4
{[%clk 0:02:25.6]} 18... Re8 {[%clk 0:02:49.8]} 19. Qa5 {[%clk 0:02:11.7]} 19...
Qxa5 {[%clk 0:02:30.7]} 20. Nxa5 {[%clk 0:02:13.6]} 20... Bxe5 {[%clk 0:02:31]}
21. fxe5 {[%clk 0:02:15.5]} 21... Bd7 {[%clk 0:02:27.1]} 22. Rb1 {[%clk
0:02:12.7]} 22... Ra8 {[%clk 0:02:27]} 23. Nc4 {[%clk 0:02:06]} 23... Nd4 {[%clk
0:02:18.8]} 24. Rb2 {[%clk 0:01:39.3]} 24... Ra1+ {[%clk 0:02:14.8]} 25. Kh2
{[%clk 0:01:39.6]} 25... Be6 {[%clk 0:02:15.4]} 26. Bh6 {[%clk 0:01:35.7]} 26...
Ra8 {[%clk 0:02:06.6]} 27. Nd6 {[%clk 0:01:34.3]} 27... Nb5 {[%clk 0:01:37.6]}
28. Nxb5 {[%clk 0:01:31.3]} 28... Rb8 {[%clk 0:01:38.6]} 29. c4 {[%clk 0:01:18]}
29... cxb5 {[%clk 0:01:39.4]} 30. cxb5 {[%clk 0:01:18.4]} 30... Bd7 {[%clk
0:01:40.4]} 31. b6 {[%clk 0:01:16.3]} 31... Bc6 {[%clk 0:01:28.7]} 32. Rc2
{[%clk 0:01:09.4]} 32... Rxb6 {[%clk 0:01:26.9]} 33. Rxc5 {[%clk 0:01:10.7]}
33... f6 {[%clk 0:01:16.4]} 34. exf6 {[%clk 0:01:10.4]} 34... Kf7 {[%clk
0:01:17.9]} 35. e5 {[%clk 0:01:10.4]} 35... Ke6 {[%clk 0:01:17.8]} 36. d4 {[%clk
0:01:08]} 36... Bd5 {[%clk 0:01:18.7]} 37. Rxd5 {[%clk 0:01:04.9]} 37... Kxd5
{[%clk 0:01:19.3]} 38. f7 {[%clk 0:01:05.9]} 1-0

[Event "*** Titled Tuesday Blitz AM"]
[Site "Chess.com"]
[Date "2020.01.07"]
[Round "5"]
[White "Usurpov"]
[Black "VeraNebolsina"]
[Result "1-0"]
[WhiteElo "2541"]
[BlackElo "2326"]
[TimeControl "180+2"]
[EndTime "10:05:15 PST"]
[Termination "Usurpov won by resignation"]

1. e4 {[%clk 0:03:01.9]} 1... g6 {[%clk 0:03:00.4]} 2. d4 {[%clk 0:03:02.1]}
2... Bg7 {[%clk 0:03:01.5]} 3. Nc3 {[%clk 0:03:03.2]} 3... d6 {[%clk 0:03:02.8]}
4. f4 {[%clk 0:03:04.3]} 4... Nf6 {[%clk 0:03:02.9]} 5. Nf3 {[%clk 0:03:05.2]}
5... c5 {[%clk 0:03:02.8]} 6. Bb5+ {[%clk 0:03:01.9]} 6... Bd7 {[%clk
0:03:02.8]} 7. e5 {[%clk 0:03:01.3]} 7... Ng4 {[%clk 0:03:02.7]} 8. Bxd7+ {[%clk
0:02:51.4]} 8... Nxd7 {[%clk 0:03:01.8]} 9. h3 {[%clk 0:02:27.5]} 9... Nh6
{[%clk 0:02:55.8]} 10. dxc5 {[%clk 0:02:21.8]} 10... Nxc5 {[%clk 0:02:51.3]} 11.
Be3 {[%clk 0:02:03.4]} 11... O-O {[%clk 0:02:49.1]} 12. O-O {[%clk 0:02:00.8]}
12... Rc8 {[%clk 0:02:29.3]} 13. Qe2 {[%clk 0:01:33.3]} 13... Nf5 {[%clk
0:02:29.3]} 14. Bf2 {[%clk 0:01:33.8]} 14... dxe5 {[%clk 0:02:26.2]} 15. fxe5
{[%clk 0:01:32.4]} 15... Ne6 {[%clk 0:02:15.4]} 16. Rad1 {[%clk 0:01:28.3]}
16... Qa5 {[%clk 0:02:16]} 17. Nd5 {[%clk 0:01:15.4]} 17... Rfd8 {[%clk
0:02:10]} 18. c4 {[%clk 0:01:14]} 18... Bf8 {[%clk 0:01:41.8]} 19. b3 {[%clk
0:01:12.4]} 19... b5 {[%clk 0:01:37]} 20. cxb5 {[%clk 0:01:02.2]} 20... Nc7
{[%clk 0:01:21.8]} 21. Nxc7 {[%clk 0:00:55]} 21... Qxc7 {[%clk 0:01:23.7]} 22.
a4 {[%clk 0:00:52.1]} 22... e6 {[%clk 0:01:20.5]} 23. Rxd8 {[%clk 0:00:51.1]}
23... Rxd8 {[%clk 0:01:21.2]} 24. Rd1 {[%clk 0:00:52.6]} 24... Rxd1+ {[%clk
0:01:11.1]} 25. Qxd1 {[%clk 0:00:54.5]} 25... Qc3 {[%clk 0:01:11.8]} 26. Bxa7
{[%clk 0:00:42.1]} 26... Bc5+ {[%clk 0:00:54.9]} 27. Bxc5 {[%clk 0:00:40.9]}
27... Qxc5+ {[%clk 0:00:56.8]} 28. Kh2 {[%clk 0:00:38.8]} 28... Qe3 {[%clk
0:00:57.7]} 29. Qe1 {[%clk 0:00:36.1]} 29... Qf4+ {[%clk 0:00:56.5]} 30. Kg1
{[%clk 0:00:35]} 1-0

[Event "*** Titled Tuesday Blitz AM"]
[Site "Chess.com"]
[Date "2020.01.07"]
[Round "5"]
[White "ExcitingTrap"]
[Black "cancrushyou"]
[Result "0-1"]
[WhiteElo "2311"]
[BlackElo "2459"]
[TimeControl "180+2"]
[EndTime "10:05:22 PST"]
[Termination "cancrushyou won by resignation"]

1. e4 {[%clk 0:03:01.9]} 1... d5 {[%clk 0:03:00.5]} 2. exd5 {[%clk 0:03:02.6]}
2... Qxd5 {[%clk 0:03:02.4]} 3. Nc3 {[%clk 0:03:03.4]} 3... Qa5 {[%clk
0:03:03.9]} 4. d4 {[%clk 0:03:04.1]} 4... Nf6 {[%clk 0:03:05.5]} 5. Bd2 {[%clk
0:03:05]} 5... Bg4 {[%clk 0:03:03.4]} 6. Be2 {[%clk 0:03:02.7]} 6... Bxe2 {[%clk
0:03:04]} 7. Qxe2 {[%clk 0:03:04.4]} 7... e6 {[%clk 0:03:00.9]} 8. Nf3 {[%clk
0:03:03.5]} 8... Bb4 {[%clk 0:02:58.5]} 9. a3 {[%clk 0:02:55.6]} 9... Nbd7
{[%clk 0:02:57.1]} 10. O-O {[%clk 0:02:54.5]} 10... Bxc3 {[%clk 0:02:57.6]} 11.
Bxc3 {[%clk 0:02:55.3]} 11... Qh5 {[%clk 0:02:59.2]} 12. Qc4 {[%clk 0:02:52.5]}
12... Qd5 {[%clk 0:02:45.7]} 13. Qxc7 {[%clk 0:02:47.7]} 13... O-O {[%clk
0:02:46.3]} 14. Rfe1 {[%clk 0:02:45.5]} 14... Rac8 {[%clk 0:02:28.9]} 15. Qf4
{[%clk 0:02:45.3]} 15... Rfe8 {[%clk 0:02:19.7]} 16. Rad1 {[%clk 0:02:43.2]}
16... b5 {[%clk 0:02:15.7]} 17. Rd3 {[%clk 0:02:32.9]} 17... Nb6 {[%clk
0:02:15.6]} 18. Re5 {[%clk 0:02:31.5]} 18... Qd7 {[%clk 0:02:16.3]} 19. Rg5
{[%clk 0:02:27.3]} 19... h6 {[%clk 0:02:11.1]} 20. Rg3 {[%clk 0:01:38.4]} 20...
Nh5 {[%clk 0:02:09.8]} 21. Qg4 {[%clk 0:01:09.2]} 21... Nxg3 {[%clk 0:02:10.2]}
22. Ne5 {[%clk 0:01:10.7]} 22... Ne2+ {[%clk 0:01:35.8]} 23. Qxe2 {[%clk
0:01:11.4]} 23... Qe7 {[%clk 0:01:31.2]} 24. Rg3 {[%clk 0:01:06.5]} 24... f6
{[%clk 0:01:29]} 25. Bb4 {[%clk 0:01:03.5]} 25... Qc7 {[%clk 0:01:22.8]} 26. Ng4
{[%clk 0:01:00]} 26... Qxc2 {[%clk 0:01:13.5]} 27. Nxh6+ {[%clk 0:00:26.2]}
27... Kh7 {[%clk 0:01:04.3]} 28. Qe3 {[%clk 0:00:16.5]} 28... Qc1+ {[%clk
0:01:03.5]} 0-1

[Event "*** Titled Tuesday Blitz AM"]
[Site "Chess.com"]
[Date "2020.01.07"]
[Round "5"]
[White "FairChess_on_YouTube"]
[Black "gmcorrales"]
[Result "1/2-1/2"]
[WhiteElo "3006"]
[BlackElo "2872"]
[TimeControl "180+2"]
[EndTime "10:05:26 PST"]
[Termination "Game drawn by repetition"]

1. d4 {[%clk 0:02:52.2]} 1... Nf6 {[%clk 0:03:00.9]} 2. Nf3 {[%clk 0:02:52.6]}
2... g6 {[%clk 0:03:01.8]} 3. b3 {[%clk 0:02:54]} 3... d5 {[%clk 0:03:01.8]} 4.
Bb2 {[%clk 0:02:54.9]} 4... Bg7 {[%clk 0:03:02.9]} 5. e3 {[%clk 0:02:56.3]} 5...
O-O {[%clk 0:03:04]} 6. Nbd2 {[%clk 0:02:57.5]} 6... b6 {[%clk 0:03:05.3]} 7. c4
{[%clk 0:02:57.1]} 7... Bb7 {[%clk 0:03:04.9]} 8. Be2 {[%clk 0:02:57.1]} 8... e6
{[%clk 0:03:05.8]} 9. O-O {[%clk 0:02:58]} 9... Nbd7 {[%clk 0:03:07.1]} 10. Rc1
{[%clk 0:02:53.6]} 10... c5 {[%clk 0:03:07.8]} 11. dxc5 {[%clk 0:02:52.4]} 11...
Nxc5 {[%clk 0:03:09.7]} 12. b4 {[%clk 0:02:52.2]} 12... Nce4 {[%clk 0:02:58.3]}
13. Nxe4 {[%clk 0:02:51.3]} 13... Nxe4 {[%clk 0:03:00.2]} 14. Bxg7 {[%clk
0:02:50.6]} 14... Kxg7 {[%clk 0:03:02.1]} 15. c5 {[%clk 0:02:50.9]} 15... bxc5
{[%clk 0:03:01.7]} 16. bxc5 {[%clk 0:02:51.8]} 16... Rc8 {[%clk 0:02:35.7]} 17.
Qd4+ {[%clk 0:02:33.7]} 17... Qf6 {[%clk 0:02:35]} 18. Bd3 {[%clk 0:02:23.9]}
18... Rc7 {[%clk 0:02:28.8]} 19. Rc2 {[%clk 0:02:07.4]} 19... Rfc8 {[%clk
0:02:25.9]} 20. Rfc1 {[%clk 0:02:08]} 20... Bc6 {[%clk 0:02:25.6]} 21. Ne5
{[%clk 0:02:05]} 21... Ba8 {[%clk 0:02:01.8]} 22. f4 {[%clk 0:01:59.3]} 22... h5
{[%clk 0:01:51.2]} 23. Bxe4 {[%clk 0:01:55.6]} 23... dxe4 {[%clk 0:01:52.3]} 24.
c6 {[%clk 0:01:56.6]} 24... Rd8 {[%clk 0:01:52]} 25. Qxe4 {[%clk 0:01:55.3]}
25... Qf5 {[%clk 0:01:48]} 26. Qb4 {[%clk 0:01:45]} 26... f6 {[%clk 0:01:45.2]}
27. Nd7 {[%clk 0:01:37.4]} 27... Rdxd7 {[%clk 0:01:26.7]} 28. cxd7 {[%clk
0:01:36]} 28... Rxc2 {[%clk 0:01:28.6]} 29. Qe7+ {[%clk 0:00:17.3]} 29... Kh6
{[%clk 0:01:28.6]} 30. Qf8+ {[%clk 0:00:16.2]} 30... Kh7 {[%clk 0:01:29.6]} 31.
Qf7+ {[%clk 0:00:16.1]} 31... Kh6 {[%clk 0:01:30.6]} 32. Qf8+ {[%clk 0:00:06.7]}
32... Kh7 {[%clk 0:01:31.6]} 33. Rxc2 {[%clk 0:00:07.5]} 33... Qxc2 {[%clk
0:01:31.4]} 34. Qf7+ {[%clk 0:00:05.8]} 34... Kh6 {[%clk 0:01:32.2]} 35. Qf8+
{[%clk 0:00:06.2]} 35... Kh7 {[%clk 0:01:33.6]} 36. Qe7+ {[%clk 0:00:06.8]}
36... Kh6 {[%clk 0:01:32.8]} 37. Qf8+ {[%clk 0:00:07.5]} 37... Kh7 {[%clk
0:01:33.8]} 1/2-1/2